fUSD/lending_fUSD_20250630
["ID","MTS","AMOUNT","RATE_DAILY","PERIOD"]
[368641360,1751261440471,-193.3622838,0.00016685,2]
[368641361,1751261440480,-541.05,0.00016692,2]
[368641362,1751261440489,-88888.0,0.00016694,2]
[368641363,1751261440499,-208.00491116,0.00016695,2]
[368641364,1751261440508,-490.0,0.00016695,2]
[368641366,1751261440517,-1000.0,0.00016695,2]
[368641367,1751261440526,-490.0,0.00016695,2]
[368641368,1751261440535,-666.25,0.00016695,2]
[368641369,1751261440545,-490.0,0.00016695,2]
[368641370,1751261440554,-855.25,0.00016695,2]
[368641371,1751261440563,-490.0,0.00016695,2]
[368641372,1751261440572,-490.0,0.00016695,2]
[368641373,1751261440581,-490.0,0.00016695,2]
[368641375,1751261440590,-598.07275214,0.00016695,2]
[368641377,1751261440600,-709.15,0.00016695,2]
[368641379,1751261440609,-886.13,0.00016695,2]
[368641381,1751261440618,-2326.0,0.00016695,2]
[368641383,1751261440627,-791.36,0.00016695,2]
[368641385,1751261440636,-511.2469769,0.00016695,2]
[368641387,1751261440646,-490.0,0.00016695,2]
[368641389,1751261440655,-1873.76,0.00016695,2]
[368641391,1751261440665,-2099.14,0.00016695,2]
[368641393,1751261440675,-490.0,0.00016695,2]
[368641395,1751261440684,-490.0,0.00016695,2]
[368641397,1751261440694,-1904.42,0.00016695,2]
[368641399,1751261440702,-653.71,0.00016695,2]
[368641401,1751261440712,-490.0,0.00016695,2]
[368641403,1751261440721,-535.86,0.00016695,2]
[368641405,1751261440730,-1699.08,0.00016695,2]
[368641407,1751261440740,-490.0,0.00016695,2]
[368641409,1751261440750,-1953.03,0.00016695,2]
[368641411,1751261440759,-1827.38,0.00016695,2]
[368641413,1751261440768,-2195.25,0.00016695,2]
[368641415,1751261440777,-490.0,0.00016695,2]
[368641417,1751261440787,-490.0,0.00016695,2]
[368641419,1751261440796,-490.0,0.00016695,2]
[368641421,1751261440805,-1338.37,0.00016695,2]
[368641423,1751261440814,-2434.45,0.00016695,2]
[368641425,1751261440823,-490.0,0.00016695,2]
[368641427,1751261440832,-1772.56,0.00016695,2]
[368641429,1751261440843,-7947.74,0.00016695,2]
[368641431,1751261440851,-849.94,0.00016695,2]
[368641433,1751261440861,-490.0,0.00016695,2]
[368641435,1751261440871,-698.2,0.00016695,2]
[368641437,1751261440879,-1970.63,0.00016695,2]
[368641439,1751261440889,-490.0,0.00016695,2]
[368641441,1751261440898,-832.74,0.00016695,2]
[368641443,1751261440908,-665.13,0.00016695,2]
[368641445,1751261440917,-490.0,0.00016695,2]
[368641447,1751261440926,-611.32,0.00016695,2]
[368641449,1751261440935,-1055.85,0.00016695,2]
[368641451,1751261440945,-1516.58,0.00016695,2]
[368641453,1751261440954,-644.65,0.00016695,2]
[368641455,1751261440963,-490.0,0.00016695,2]
[368641457,1751261440972,-4527.05,0.00016695,2]
[368641458,1751261440982,-490.0,0.00016695,2]
[368641460,1751261440991,-10184.1,0.00016695,2]
[368641462,1751261441001,-490.0,0.00016695,2]
[368641464,1751261441010,-1897.88,0.00016695,2]
[368641466,1751261441019,-510.74,0.00016695,2]
[368641468,1751261441030,-716.76,0.00016695,2]
[368641470,1751261441039,-1393.36,0.00016695,2]
[368641472,1751261441048,-490.0,0.00016695,2]
[368641474,1751261441058,-490.0,0.00016695,2]
[368641476,1751261441067,-6635.22,0.00016695,2]
[368641478,1751261441077,-177.44125519,0.00016695,2]
[368641480,1751261441086,-603.58,0.00016695,2]
[368641482,1751261441094,-1358.63,0.00016695,2]
[368641484,1751261441103,-490.0,0.00016695,2]
[368641486,1751261441112,-998.24,0.00016695,2]
[368641488,1751261441121,-490.0,0.00016695,2]
[368641490,1751261441130,-490.0,0.00016695,2]
[368641492,1751261441140,-490.0,0.00016696,2]
[368641494,1751261441149,-490.0,0.00016696,2]
[368641496,1751261441158,-756.04,0.00016696,2]
[368641498,1751261441167,-490.0,0.00016696,2]
[368641500,1751261441177,-490.0,0.00016696,2]
[368641502,1751261441186,-490.0,0.00016696,2]
[368641504,1751261441195,-878.51,0.00016696,2]
[368641506,1751261441204,-490.0,0.00016696,2]
[368641508,1751261441214,-501.54,0.00016696,2]
[368641510,1751261441223,-1279.7,0.00016696,2]
[368641512,1751261441232,-490.0,0.00016696,2]
[368641514,1751261441241,-490.0,0.00016696,2]
[368641516,1751261441251,-2120.76,0.00016696,2]
[368641518,1751261441260,-490.0,0.00016696,2]
[368641520,1751261441269,-700.08,0.00016696,2]
[368641522,1751261441278,-490.0,0.00016696,2]
[368641524,1751261441287,-492.38866843,0.00016696,2]
[368641526,1751261441296,-2280.01,0.00016696,2]
[368641527,1751261441305,-489.53890592,0.00016696,2]
[368641529,1751261441314,-490.0,0.00016696,2]
[368641532,1751261441324,-594.39,0.00016696,2]
[368641533,1751261441335,-632.23,0.00016696,2]
[368641535,1751261441344,-490.0,0.00016696,2]
[368641538,1751261441353,-490.0,0.00016696,2]
[368641540,1751261441362,-775.89,0.00016696,2]
[368641542,1751261441371,-490.0,0.00016696,2]
[368641543,1751261441380,-744.65,0.00016696,2]
[368641546,1751261441390,-490.0,0.00016696,2]
[368641548,1751261441400,-490.0,0.00016696,2]
[368641550,1751261441408,-492.03054145,0.00016696,2]
[368641552,1751261441417,-1306.84,0.00016696,2]
[368641554,1751261441426,-199.05413522,0.00016696,2]
[368641556,1751261441435,-490.0,0.00016696,2]
[368641557,1751261441444,-1952.08,0.00016696,2]
[368641559,1751261441456,-490.0,0.00016696,2]
[368641561,1751261441466,-1698.45,0.00016696,2]
[368641563,1751261441475,-490.0,0.00016696,2]
[368641565,1751261441484,-490.0,0.00016696,2]
[368641567,1751261441493,-510.0,0.00016696,2]
[368641569,1751261441504,-2764.33,0.00016696,2]
[368641571,1751261441513,-864.26,0.00016696,2]
[368641573,1751261441522,-626.65693424,0.00016696,2]
[368641575,1751261441533,-1296.71,0.00016696,2]
[368641577,1751261441543,-676.01,0.00016696,2]
[368641579,1751261441553,-490.0,0.00016696,2]
[368641581,1751261441563,-1223.22,0.00016696,2]
[368641583,1751261441572,-1211.69,0.00016696,2]
[368641585,1751261441581,-490.0,0.00016696,2]
[368641587,1751261441590,-569.72,0.00016696,2]
[368641589,1751261441600,-490.0,0.00016696,2]
[368641591,1751261441610,-1631.54,0.00016696,2]
[368641593,1751261441619,-1063.72,0.00016696,2]
[368641595,1751261441628,-490.0,0.00016696,2]
[368641597,1751261441638,-4413.855241,0.00016696,2]
[368641599,1751261441647,-1206.61,0.00016696,2]
[368641601,1751261441656,-491.1658762,0.00016696,2]
[368641603,1751261441665,-490.0,0.00016696,2]
[368641605,1751261441674,-1482.55,0.00016696,2]
[368641607,1751261441683,-166.666666,0.00016696,2]
[368641608,1751261441692,-1868.98,0.00016696,2]
[368641610,1751261441702,-764.57,0.00016696,2]
[368641612,1751261441711,-490.0,0.00016696,2]
[368641615,1751261441720,-505.51342041,0.00016696,2]
[368641616,1751261441729,-4793.157444,0.00016696,2]
[368641617,1751261441738,-1150.86,0.00016696,2]
[368641618,1751261441749,-490.0,0.00016696,2]
[368641619,1751261441758,-490.0,0.00016696,2]
[368641620,1751261441767,-490.0,0.00016696,2]
[368641621,1751261441777,-491.54976272,0.00016696,2]
[368641622,1751261441787,-2339.16,0.00016696,2]
[368641623,1751261441796,-490.0,0.00016696,2]
[368641624,1751261441805,-3345.090676,0.00016696,2]
[368641625,1751261441815,-157.836773,0.00016696,2]
[368641626,1751261441825,-755.67,0.00016696,2]
[368641627,1751261441835,-490.0,0.00016696,2]
[368641628,1751261441845,-1404.21,0.00016696,2]
[368641629,1751261441854,-154.882695,0.00016696,2]
[368641630,1751261441863,-550.431098,0.00016696,2]
[368641631,1751261441873,-1435.43,0.00016696,2]
[368641632,1751261441882,-490.0,0.00016696,2]
[368641633,1751261441891,-490.0,0.00016696,2]
[368641634,1751261441900,-2442.21,0.00016696,2]
[368641635,1751261441909,-490.0,0.00016696,2]
[368641636,1751261441919,-609.03,0.00016696,2]
[368641637,1751261441928,-879.3,0.00016696,2]
[368641638,1751261441938,-1587.15,0.00016696,2]
[368641639,1751261441948,-1075.95,0.00016696,2]
[368641640,1751261441957,-490.0,0.00016696,2]
[368641641,1751261441967,-1006.02,0.00016696,2]
[368641642,1751261441977,-1387.66,0.00016696,2]
[368641643,1751261441986,-490.0,0.00016696,2]
[368641644,1751261441996,-490.0,0.00016696,2]
[368641645,1751261442006,-3107.31,0.00016696,2]
[368641646,1751261442016,-490.0,0.00016696,2]
[368641647,1751261442026,-490.0,0.00016696,2]
[368641648,1751261442036,-490.0,0.00016696,2]
[368641649,1751261442046,-1562.15,0.00016696,2]
[368641650,1751261442057,-927.46,0.00016696,2]
[368641651,1751261442067,-490.0,0.00016696,2]
[368641652,1751261442076,-490.0,0.00016696,2]
[368641653,1751261442085,-490.0,0.00016696,2]
[368641654,1751261442094,-490.0,0.00016696,2]
[368641655,1751261442103,-1425.82,0.00016696,2]
[368641656,1751261442112,-409.21815412,0.00016696,2]
[368641657,1751261442121,-490.0,0.00016696,2]
[368641658,1751261442131,-490.0,0.00016696,2]
[368641659,1751261442140,-490.0,0.00016696,2]
[368641660,1751261442150,-490.0,0.00016696,2]
[368641661,1751261442159,-490.0,0.00016696,2]
[368641662,1751261442170,-488.1477137,0.00016696,2]
[368641663,1751261442179,-576.48,0.00016696,2]
[368641664,1751261442188,-1076.57,0.00016696,2]
[368641665,1751261442198,-490.0,0.00016696,2]
[368641666,1751261442207,-241.26634026,0.00016696,2]
[368641667,1751261442216,-490.0,0.00016696,2]
[368641668,1751261442225,-490.0,0.00016696,2]
[368641669,1751261442234,-490.0,0.00016696,2]
[368641670,1751261442243,-490.0,0.00016696,2]
[368641671,1751261442252,-490.0,0.00016696,2]
[368641672,1751261442261,-841.73,0.00016696,2]
[368641673,1751261442270,-490.0,0.00016696,2]
[368641674,1751261442280,-490.0,0.00016696,2]
[368641675,1751261442290,-490.0,0.00016696,2]
[368641676,1751261442299,-574.15,0.00016696,2]
[368641677,1751261442308,-2138.94,0.00016696,2]
[368641678,1751261442317,-490.0,0.00016696,2]
[368641679,1751261442326,-614.04,0.00016696,2]
[368641680,1751261442335,-490.0,0.00016696,2]
[368641681,1751261442344,-490.0,0.00016696,2]
[368641682,1751261442353,-490.0,0.00016696,2]
[368641683,1751261442362,-490.0,0.00016696,2]
[368641684,1751261442371,-490.0,0.00016696,2]
[368641685,1751261442380,-321.18452723,0.00016696,2]
[368641686,1751261442389,-490.0,0.00016696,2]
[368641687,1751261442399,-755.78,0.00016696,2]
[368641688,1751261442408,-490.0,0.00016696,2]
[368641689,1751261442417,-1266.96,0.00016696,2]
[368641690,1751261442426,-490.0,0.00016696,2]
[368641691,1751261442435,-490.0,0.00016696,2]
[368641692,1751261442444,-3992.9,0.00016696,2]
[368641693,1751261442455,-1484.03,0.00016696,2]
[368641694,1751261442465,-490.0,0.00016696,2]
[368641695,1751261442474,-490.0,0.00016696,2]
[368641696,1751261442482,-2175.5,0.00016696,2]
[368641697,1751261442491,-490.0,0.00016696,2]
[368641698,1751261442500,-490.0,0.00016696,2]
[368641699,1751261442510,-490.0,0.00016696,2]
[368641700,1751261442519,-162.32878627,0.00016696,2]
[368641701,1751261442528,-2249.56,0.00016696,2]
[368641702,1751261442538,-614.25,0.00016696,2]
[368641703,1751261442548,-490.0,0.00016696,2]
[368641704,1751261442558,-2888.07,0.00016696,2]
[368641705,1751261442567,-716.23,0.00016696,2]
[368641706,1751261442577,-490.0,0.00016696,2]
[368641707,1751261442586,-1802.75,0.00016696,2]
[368641708,1751261442595,-490.0,0.00016696,2]
[368641709,1751261442604,-1790.17,0.00016696,2]
[368641710,1751261442615,-490.0,0.00016696,2]
[368641711,1751261442624,-610.27,0.00016696,2]
[368641712,1751261442633,-490.0,0.00016696,2]
[368641713,1751261442643,-156.50988848,0.00016696,2]
[368641714,1751261442653,-490.0,0.00016696,2]
[368641715,1751261442662,-256.69654776,0.00016696,2]
[368641716,1751261442672,-1409.11,0.00016696,2]
[368641717,1751261442682,-5193.97,0.00016696,2]
[368641718,1751261442691,-490.0,0.00016696,2]
[368641719,1751261442700,-1678.85,0.00016696,2]
[368641720,1751261442709,-4914.11,0.00016696,2]
[368641722,1751261442719,-490.0,0.00016696,2]
[368641723,1751261442728,-490.0,0.00016696,2]
[368641724,1751261442736,-490.0,0.00016696,2]
[368641725,1751261442745,-490.0,0.00016696,2]
[368641727,1751261442754,-151.0,0.00016696,2]
[368641732,1751261443022,-490.0,0.00016696,2]
[368641733,1751261443032,-2299.26,0.00016696,2]
[368641734,1751261443042,-1154.07,0.00016696,2]
[368641735,1751261443052,-490.0,0.00016696,2]
[368641736,1751261443061,-2276.36,0.00016696,2]
[368641737,1751261443070,-2553.43,0.00016696,2]
[368641738,1751261443080,-490.0,0.00016696,2]
[368641739,1751261443090,-490.0,0.00016696,2]
[368641740,1751261443100,-2190.47,0.00016696,2]
[368641741,1751261443109,-2283.07,0.00016696,2]
[368641742,1751261443119,-5643.11,0.00016696,2]
[368641743,1751261443128,-2099.68,0.00016696,2]
[368641744,1751261443138,-5220.63,0.00016696,2]
[368641745,1751261443148,-2460.3,0.00016696,2]
[368641746,1751261443158,-490.0,0.00016696,2]
[368641747,1751261443167,-490.0,0.00016696,2]
[368641748,1751261443177,-490.0,0.00016696,2]
[368641749,1751261443186,-490.0,0.00016696,2]
[368641750,1751261443195,-962.48,0.00016696,2]
[368641751,1751261443205,-490.0,0.00016696,2]
[368641752,1751261443215,-2196.0,0.00016696,2]
[368641753,1751261443224,-583.97399311,0.00016696,2]
[368641754,1751261443233,-490.0,0.00016696,2]
[368641755,1751261443243,-2816.83,0.00016696,2]
[368641757,1751261443251,-490.0,0.00016696,2]
[368641758,1751261443261,-151.0,0.00016696,2]
[368641760,1751261443270,-151.0,0.00016696,2]
[368641762,1751261443280,-151.0,0.00016696,2]
[368641764,1751261443289,-151.0,0.00016696,2]
[368641766,1751261443299,-2607.71,0.00016696,2]
[368641768,1751261443308,-490.0,0.00016696,2]
[368641770,1751261443317,-1894.93,0.00016696,2]
[368641772,1751261443327,-490.0,0.00016696,2]
[368641774,1751261443336,-11851.55,0.00016696,2]
[368641776,1751261443346,-151.0,0.00016696,2]
[368641778,1751261443355,-151.0,0.00016696,2]
[368641780,1751261443364,-1897.79,0.00016696,2]
[368641782,1751261443374,-5252.49,0.00016696,2]
[368641784,1751261443383,-3832.64,0.00016696,2]
[368641786,1751261443392,-490.0,0.00016696,2]
[368641788,1751261443402,-501.61596856,0.00016696,2]
[368641790,1751261443411,-2709.27,0.00016696,2]
[368641791,1751261443420,-887.17,0.00016696,2]
[368641793,1751261443429,-490.0,0.00016696,2]
[368641795,1751261443438,-490.0,0.00016696,2]
[368641797,1751261443448,-2411.15,0.00016696,2]
[368641800,1751261443461,-463.78594834,0.00016696,2]
[368641802,1751261443471,-151.0,0.00016696,2]
[368641804,1751261443480,-151.0,0.00016696,2]
[368641806,1751261443489,-490.0,0.00016696,2]
[368641808,1751261443499,-490.0,0.00016696,2]
[368641810,1751261443508,-151.0,0.00016696,2]
[368641811,1751261443518,-151.0,0.00016696,2]
[368641813,1751261443529,-490.0,0.00016696,2]
[368641815,1751261443541,-527.36,0.00016696,2]
[368641817,1751261443550,-6272.66,0.00016696,2]
[368641819,1751261443560,-2291.48,0.00016696,2]
[368641821,1751261443569,-490.0,0.00016696,2]
[368641823,1751261443579,-2874.74,0.00016696,2]
[368641825,1751261443589,-1314.66,0.00016696,2]
[368641827,1751261443598,-490.0,0.00016696,2]
[368641829,1751261443608,-2372.252602,0.00016696,2]
[368641832,1751261443617,-490.0,0.00016696,2]
[368641834,1751261443627,-2301.05,0.00016696,2]
[368641835,1751261443636,-2372.252602,0.00016696,2]
[368641837,1751261443645,-490.0,0.00016696,2]
[368641839,1751261443655,-2372.252602,0.00016696,2]
[368641842,1751261443664,-2372.252602,0.00016696,2]
[368641844,1751261443673,-151.0,0.00016696,2]
[368641845,1751261443683,-1164.85,0.00016696,2]
[368641847,1751261443692,-2660.92,0.00016696,2]
[368641849,1751261443703,-2723.81,0.00016696,2]
[368641851,1751261443713,-490.87385509,0.00016696,2]
[368641853,1751261443722,-1428.29,0.00016696,2]
[368641855,1751261443731,-8370.0,0.00016696,2]
[368641857,1751261443740,-490.0,0.00016696,2]
[368641859,1751261443749,-1610.64,0.00016696,2]
[368641860,1751261443758,-151.0,0.00016696,2]
[368641861,1751261443768,-151.0,0.00016696,2]
[368641862,1751261443777,-1423.94,0.00016696,2]
[368641863,1751261443787,-490.0,0.00016696,2]
[368641864,1751261443796,-490.0,0.00016696,2]
[368641865,1751261443806,-309.27868757,0.00016696,2]
[368641866,1751261443815,-152.551001,0.00016696,2]
[368641867,1751261443824,-2475.39,0.00016696,2]
[368641868,1751261443833,-490.0,0.00016696,2]
[368641869,1751261443843,-151.0,0.00016696,2]
[368641870,1751261443851,-1033.31,0.00016696,2]
[368641871,1751261443860,-2033.74,0.00016696,2]
[368641872,1751261443870,-490.0,0.00016696,2]
[368641873,1751261443879,-490.0,0.00016696,2]
[368641874,1751261443888,-15806.26,0.00016696,2]
[368641875,1751261443897,-156.54419,0.00016696,2]
[368641876,1751261443907,-1039.33,0.00016696,2]
[368641877,1751261443916,-1656.61,0.00016696,2]
[368641878,1751261443925,-224.50589522,0.00016696,2]
[368641879,1751261443935,-2394.97,0.00016696,2]
[368641880,1751261443944,-495.8436119,0.00016696,2]
[368641881,1751261443954,-490.0,0.00016696,2]
[368641882,1751261443963,-490.0,0.00016696,2]
[368641883,1751261443973,-490.0,0.00016696,2]
[368641884,1751261443984,-2584.02,0.00016696,2]
[368641885,1751261443993,-2213.02,0.00016696,2]
[368641886,1751261444002,-9737.54,0.00016696,2]
[368641887,1751261444012,-1532.6,0.00016696,2]
[368641888,1751261444022,-225.857112,0.00016696,2]
[368641889,1751261444032,-490.0,0.00016696,2]
[368641890,1751261444041,-490.0,0.00016696,2]
[368641891,1751261444051,-1659.52,0.00016696,2]
[368641892,1751261444062,-490.0,0.00016696,2]
[368641893,1751261444071,-6105.19,0.00016696,2]
[368641894,1751261444081,-490.0,0.00016696,2]
[368641895,1751261444090,-490.0,0.00016696,2]
[368641896,1751261444099,-4237.49,0.00016696,2]
[368641897,1751261444108,-684.83,0.00016696,2]
[368641898,1751261444118,-1520.1,0.00016696,2]
[368641899,1751261444127,-490.0,0.00016696,2]
[368641900,1751261444137,-151.0,0.00016696,2]
[368641901,1751261444147,-151.0,0.00016696,2]
[368641902,1751261444157,-173.5678,0.00016696,2]
[368641903,1751261444166,-173.5678,0.00016696,2]
[368641904,1751261444176,-490.0,0.00016696,2]
[368641905,1751261444185,-2806.24,0.00016696,2]
[368641906,1751261444195,-173.5678,0.00016696,2]
[368641907,1751261444204,-173.5678,0.00016696,2]
[368641908,1751261444214,-490.0,0.00016696,2]
[368641909,1751261444223,-151.0,0.00016696,2]
[368641910,1751261444233,-1697.37,0.00016696,2]
[368641911,1751261444242,-151.0,0.00016696,2]
[368641912,1751261444251,-5207.33,0.00016696,2]
[368641913,1751261444261,-491.2341871,0.00016696,2]
[368641914,1751261444271,-6714.39,0.00016696,2]
[368641915,1751261444281,-151.0,0.00016696,2]
[368641916,1751261444290,-151.0,0.00016696,2]
[368641917,1751261444300,-491.95132762,0.00016696,2]
[368641918,1751261444310,-1252.39,0.00016696,2]
[368641919,1751261444319,-490.0,0.00016696,2]
[368641920,1751261444328,-4867.01,0.00016696,2]
[368641921,1751261444338,-937.36,0.00016696,2]
[368641922,1751261444347,-151.0,0.00016696,2]
[368641923,1751261444356,-151.0,0.00016696,2]
[368641924,1751261444366,-151.0,0.00016696,2]
[368641925,1751261444375,-151.0,0.00016696,2]
[368641926,1751261444386,-490.0,0.00016696,2]
[368641927,1751261444395,-490.0,0.00016696,2]
[368641928,1751261444404,-1525.01,0.00016696,2]
[368641929,1751261444414,-490.0,0.00016696,2]
[368641930,1751261444423,-500.0,0.00016696,2]
[368641931,1751261444432,-500.0,0.00016696,2]
[368641932,1751261444442,-556.10222035,0.00016696,2]
[368641933,1751261444452,-500.0,0.00016696,2]
[368641934,1751261444463,-168.51192132,0.00016696,2]
[368641935,1751261444472,-500.0,0.00016696,2]
[368641936,1751261444482,-1138.06,0.00016697,2]
[368641937,1751261444492,-165.536203,0.00016697,2]
[368641938,1751261444501,-422.93503941,0.00016697,2]
[368641939,1751261444510,-1175.12,0.00016697,2]
[368641940,1751261444521,-492.16,0.00016697,2]
[368641941,1751261444531,-490.0,0.00016697,2]
[368641942,1751261444540,-490.0,0.00016697,2]
[368641943,1751261444550,-490.0,0.00016697,2]
[368641944,1751261444561,-811.81,0.00016697,2]
[368641945,1751261444571,-490.0,0.00016697,2]
[368641946,1751261444582,-490.0,0.00016697,2]
[368641947,1751261444591,-490.0,0.00016697,2]
[368641948,1751261444601,-221.20029483,0.00016697,2]
[368641949,1751261444611,-831.1,0.00016697,2]
[368641950,1751261444622,-490.0,0.00016697,2]
[368641951,1751261444632,-1281.99,0.00016697,2]
[368641952,1751261444643,-1531.0,0.00016697,2]
[368641953,1751261444652,-490.0,0.00016697,2]
[368641954,1751261444662,-2856.91,0.00016697,2]
[368641955,1751261444672,-158.143016,0.00016697,2]
[368641956,1751261444682,-1023.87,0.00016697,2]
[368641957,1751261444691,-2549.45,0.00016697,2]
[368641958,1751261444702,-1263.62,0.00016697,2]
[368641959,1751261444712,-151.0,0.00016697,2]
[368641960,1751261444722,-1442.94,0.00016697,2]
[368641961,1751261444732,-490.0,0.00016697,2]
[368641962,1751261444742,-151.0,0.00016697,2]
[368641963,1751261444752,-490.0,0.00016697,2]
[368641964,1751261444764,-490.0,0.00016697,2]
[368641965,1751261444773,-490.0,0.00016697,2]
[368641966,1751261444783,-1195.61,0.00016697,2]
[368641967,1751261444793,-151.0,0.00016697,2]
[368641968,1751261444803,-490.0,0.00016697,2]
[368641969,1751261444814,-490.0,0.00016697,2]
[368641970,1751261444825,-515.29,0.00016697,2]
[368641971,1751261444835,-2064.41,0.00016697,2]
[368641972,1751261444845,-1521.96,0.00016697,2]
[368641973,1751261444854,-377.05140954,0.00016697,2]
[368641974,1751261444864,-3196.92,0.00016697,2]
[368641975,1751261444873,-2392.0,0.00016697,2]
[368641976,1751261444882,-490.0,0.00016697,2]
[368641977,1751261444892,-4017.96,0.00016697,2]
[368641978,1751261444901,-810.61,0.00016697,2]
[368641979,1751261444911,-3382.79,0.00016697,2]
[368641980,1751261444922,-490.0,0.00016697,2]
[368641981,1751261444932,-490.0,0.00016697,2]
[368641982,1751261444942,-1273.27,0.00016697,2]
[368641983,1751261444951,-490.0,0.00016697,2]
[368641984,1751261444960,-151.0,0.00016697,2]
[368641985,1751261444970,-151.0,0.00016697,2]
[368641986,1751261444980,-151.0,0.00016697,2]
[368641987,1751261444990,-151.0,0.00016697,2]
[368641988,1751261445000,-3123.98,0.00016697,2]
[368641989,1751261445010,-2398.3,0.00016697,2]
[368641990,1751261445021,-887.33,0.00016697,2]
[368641991,1751261445031,-151.0,0.00016697,2]
[368641992,1751261445040,-151.0,0.00016697,2]
[368641993,1751261445050,-2814.04,0.00016697,2]
[368641994,1751261445059,-490.0,0.00016697,2]
[368641995,1751261445069,-151.0,0.00016697,2]
[368641996,1751261445078,-151.0,0.00016697,2]
[368641997,1751261445087,-2172.72,0.00016697,2]
[368641998,1751261445097,-1331.87,0.00016697,2]
[368641999,1751261445106,-166.470629,0.00016697,2]
[368642000,1751261445115,-153.049673,0.00016697,2]
[368642001,1751261445125,-769.45,0.00016697,2]
[368642002,1751261445134,-193.270053,0.00016697,2]
[368642003,1751261445143,-193.270053,0.00016697,2]
[368642004,1751261445152,-3783.03,0.00016697,2]
[368642005,1751261445161,-193.270053,0.00016697,2]
[368642006,1751261445171,-193.270053,0.00016697,2]
[368642007,1751261445180,-151.0,0.00016697,2]
[368642008,1751261445189,-3567.56,0.00016697,2]
[368642009,1751261445200,-1655.01,0.00016697,2]
[368642010,1751261445210,-151.0,0.00016697,2]
[368642011,1751261445220,-1859.53,0.00016697,2]
[368642012,1751261445229,-709.38,0.00016697,2]
[368642013,1751261445239,-398.161999,0.00016697,2]
[368642014,1751261445249,-398.161999,0.00016697,2]
[368642015,1751261445258,-151.0,0.00016697,2]
[368642016,1751261445268,-151.0,0.00016697,2]
[368642017,1751261445278,-151.0,0.00016697,2]
[368642018,1751261445288,-151.0,0.00016697,2]
[368642019,1751261445297,-398.161999,0.00016697,2]
[368642020,1751261445306,-398.161999,0.00016697,2]
[368642021,1751261445318,-3165.01,0.00016697,2]
[368642022,1751261445327,-2171.35,0.00016697,2]
[368642023,1751261445336,-30180.44,0.00016697,2]
[368642024,1751261445346,-1781.25,0.00016697,2]
[368642026,1751261445355,-2223.31,0.00016697,2]
[368642027,1751261445364,-2406.82,0.00016697,2]
[368642028,1751261445373,-151.0,0.00016697,2]
[368642029,1751261445382,-151.0,0.00016697,2]
[368642030,1751261445391,-151.0,0.00016697,2]
[368642031,1751261445400,-151.0,0.00016697,2]
[368642032,1751261445409,-151.0,0.00016697,2]
[368642033,1751261445418,-151.0,0.00016697,2]
[368642034,1751261445428,-151.0,0.00016697,2]
[368642035,1751261445437,-2664.57,0.00016697,2]
[368642036,1751261445446,-5008.99,0.00016697,2]
[368642037,1751261445457,-490.0,0.00016697,2]
[368642038,1751261445471,-221.212646,0.00016697,2]